[Event "87th Spanish Championship 2022"]
[Site "Linares"]
[Date "2022.08.15"]
[Round "6.16"]
[White "Lopez Varela, Pablo"]
[Black "Ladron De Guevara Pinto, Paolo"]
[Result "0-1"]
[ECO "C54"]
[WhiteElo "2158"]
[BlackElo "2444"]
[Annotator "TA"]
[PlyCount "52"]
[EventDate "2022.08.11"]
[EventType "swiss"]
[EventCountry "ESP"]
[SourceTitle "playchess.com"]
[Source "ChessBase"]
[SourceQuality "1"]
[TimeControl "5400+30"]

{[%evp 18,52,0,0,-5,0,-3,-16,25,25,27,18,38,27,22,30,51,8,7,0,0,0,0,-185,-183,-185,-187,-202,-201,-263,-290,-362,-286,-431,-434,-391,-297]} 1. e4 {[%emt 0:00:06]} e5 {[%emt 0:03:25]} 2. Nf3 {[%emt 0:00:06]} Nc6 {[%emt 0:00:05]} 3. Bc4 {[%emt 0:00:04]} Bc5 {[%emt 0:00:12]} 4. c3 {[%emt 0:00:04]} Nf6 {[%emt 0:00:05]} 5. d4 {[%emt 0:00:03]} exd4 {[%emt 0:00:18]} 6. e5 {[%emt 0:00:06]} d5 {[%emt 0:00:11]} 7. Be2 {[%emt 0:00:04]} Ne4 {[%emt 0:00:54]} 8. cxd4 {[%emt 0:00:04]} Bb4+ {[%emt 0:01:03]} 9. Bd2 {[%emt 0:00:09]} Nxd2 {[%emt 0:00:07]} 10. Nbxd2 {[%emt 0:00:03]} O-O {[%emt 0:00:32] C54: Giuoco Piano: 4 c3 Nf6, main lines with 5 d4 and 5 d3.} 11. O-O {[%emt 0:00:05]} f6 {[%emt 0:02:24]} 12. Nb3 {[%emt 0:00:59]} a5 {[%emt 0:19:31] The position is equal.} (12... Re8 $5 {[%cal Rf6e5]}) 13. a3 {[%emt 0:05:49]} Be7 {[%emt 0:00:22]} 14. Rc1 {[%emt 0:00:12]} Bf5 {[%emt 0:32:35]} 15. Nc5 {[%emt 0:13:12]} Bxc5 {[%emt 0:01:36]} 16. Rxc5 {[%emt 0:00:03]} Ne7 {[%emt 0:01:24][%cal Bc6e7,Be7f5,Bf5d4,Bd4e6,Be6g5][%mdl 32] [#]} 17. Nh4 $146 {[%emt 0:04:37]} ({Predecessor:} 17. Qb3 c6 18. h3 a4 19. Qb4 Ra7 20. exf6 Rxf6 21. Ne5 Ng6 22. Re1 Nxe5 23. dxe5 {½-½ (47) Antal,G (2562)-Nemeth,M (2487) Slovakia 2020}) 17... fxe5 {[%emt 0:07:28]} 18. Nxf5 {[%emt 0:02:19]} Nxf5 {[%emt 0:03:32]} 19. dxe5 {[%emt 0:00:40]} c6 {[%emt 0:00:04]} 20. g4 $2 {[%emt 0:02:38] [#]} (20. Qd2 $11 {and White stays safe.}) 20... Qb6 $19 {[%emt 0:00:24][%csl LRb2,LRc5]} 21. Rc3 {[%emt 0:11:16]} Nd4 {[%emt 0:00:09]} ({Resist} 21... Qxb2 22. Rb3 Qxe5 23. gxf5 $16) 22. Rh3 {[%emt 0:02:14]} Rf4 {[%emt 0:02:58]} ({Worse is} 22... Qxb2 23. Bd3 g6 24. f4 $17) 23. Bd3 {[%emt 0:06:15]} g6 {[%emt 0:00:24]} (23... Qxb2 24. Bxh7+ Kf8 25. Qd3 $17) 24. e6 {[%emt 0:02:43]} Nxe6 {[%emt 0:01:21]} 25. Qe1 {[%emt 0:02:11]} (25. Qe2 $142 Ng5 26. Rg3) 25... Ng5 {[%emt 0:00:42]} 26. Re3 {[%emt 0:00:42]} Raf8 {[%emt 0:02:54] Weighted Error Value: White=0.44/Black=0.10 (very precise)} 0-1

[Event "87th Spanish Championship 2022"]
[Site "Linares"]
[Date "2022.08.15"]
[Round "6.17"]
[White "Luque Saiz, Andres"]
[Black "Bernabeu Lopez, Carlos Javier"]
[Result "0-1"]
[ECO "C54"]
[WhiteElo "2289"]
[BlackElo "2421"]
[Annotator "TA"]
[PlyCount "60"]
[EventDate "2022.08.11"]
[EventType "swiss"]
[EventCountry "ESP"]
[SourceTitle "playchess.com"]
[Source "ChessBase"]
[SourceQuality "1"]
[TimeControl "5400+30"]

{[%evp 10,60,17,8,24,33,21,13,14,-3,0,-14,24,20,27,-8,-13,0,-6,-16,-12,-12,-11,-12,-14,-9,-5,-2,-5,-1,0,0,0,-8,0,-122,-145,-341,-345,-365,-358,-357,-359,-361,-351,-715,-704,-754,-754,-753,-749,-723,-705]} 1. e4 {[%emt 0:00:02]} e5 {[%emt 0:03:33]} 2. Nf3 {[%emt 0:00:10]} Nc6 {[%emt 0:00:06]} 3. Bc4 {[%emt 0:00:07]} Bc5 {[%emt 0:00:05]} 4. c3 {[%emt 0:00:08]} Nf6 {[%emt 0:00:05][%cal Bg8f6,Bf6d5,Bd5b6][%mdl 32]} 5. d3 {[%emt 0:00:05]} O-O {[%emt 0:00:06]} 6. Nbd2 {[%emt 0:00:12]} d5 {[%emt 0:00:11] C54: Giuoco Piano: 4 c3 Nf6, main lines with 5 d4 and 5 d3.} 7. exd5 {[%emt 0:00:42]} Nxd5 {[%emt 0:00:05]} 8. O-O {[%emt 0:00:18]} Nb6 {[%emt 0:01:21] The position is equal.} 9. b4 {[%emt 0:09:21][%cal Bb2b4,Bb4b5][%mdl 32]} Be7 {[%emt 0:12:21]} 10. Re1 {[%emt 0:08:49]} Bg4 {[%emt 0:05:44]} 11. h3 {[%emt 0:01:11]} Bh5 {[%emt 0:04:34]} 12. a4 {[%emt 0:18:13] [#]} Nxc4 $146 {[%emt 0:08:01]} ({Predecessor:} 12... a6 13. Bb2 Kh8 14. b5 Na5 15. Rxe5 Naxc4 16. Nxc4 Nxc4 17. dxc4 Qxd1+ 18. Rxd1 Bxf3 19. gxf3 {0-1 (51) Schaefer,S (1991)-Miller,E (2355) Forchheim 2018}) 13. Nxc4 {[%emt 0:00:18] Threatens to win with b5.} f6 {[%emt 0:00:50]} 14. b5 {[%emt 0:09:34]} Nb8 {[%emt 0:00:18]} 15. d4 {[%emt 0:00:26]} a6 {[%emt 0:09:38]} 16. Ba3 {[%emt 0:21:46]} Bxa3 {[%emt 0:03:15]} 17. Nxa3 {[%emt 0:00:03]} exd4 {[%emt 0:03:59]} 18. cxd4 axb5 {[%emt 0:04:23]} (18... c6 {feels hotter.} 19. Qd3 axb5 20. axb5 Bg6) 19. Nxb5 {[%emt 0:09:54]} Nc6 {[%emt 0:03:59][%cal Bb8c6,Bc6e5,Be5d3][%mdl 32]} 20. d5 {[%emt 0:02:21]} Ne5 {[%emt 0:07:57]} 21. g4 {[%emt 0:00:16]} Bg6 {[%emt 0:14:21][%cal Og6c2]} 22. Rc1 {[%emt 0:13:51]} (22. Nxe5 $11 fxe5 23. Re3) 22... Nd3 $17 {[%emt 0:01:30]} 23. Nxc7 $2 {[%emt 0:00:44] White does not recover from this.} (23. Nfd4 $17 {is a better defense.} Qxd5 24. Ne6) 23... Rc8 $19 {[%emt 0:05:21]} ({Not} 23... Nxe1 24. Nxe1 Rc8 25. d6 $15) 24. Ne6 {[%emt 0:02:02] [#]} Rxc1 $1 {[%emt 0:02:50]} 25. Qxc1 {[%emt 0:00:30]} Nxc1 {[%emt 0:00:44]} 26. Nxd8 {[%emt 0:00:25]} Nd3 {[%emt 0:00:04]} 27. Nxb7 $2 {[%emt 0:01:07]} (27. Rb1 Rxd8 28. Rxb7) 27... Nxe1 {[%emt 0:00:05] Black is clearly winning.} 28. Nxe1 {[%emt 0:00:03]} Rb8 {[%emt 0:02:26]} 29. Nc5 {[%emt 0:00:05]} Rb1 {[%emt 0:00:04]} 30. Kf1 {[%emt 0:00:07]} Rc1 {[%emt 0:00:04] Weighted Error Value: White=0.47/Black=0.03 (flawless)} 0-1

[Event "87th Spanish Championship 2022"]
[Site "Linares"]
[Date "2022.08.15"]
[Round "6.18"]
[White "Moreno Tejera, Emilio"]
[Black "Lin, Yingrui"]
[Result "1/2-1/2"]
[ECO "B33"]
[WhiteElo "2420"]
[BlackElo "2314"]
[Annotator "TA"]
[PlyCount "76"]
[EventDate "2022.08.11"]
[EventType "swiss"]
[EventCountry "ESP"]
[SourceTitle "playchess.com"]
[Source "ChessBase"]
[SourceQuality "1"]
[TimeControl "5400+30"]

{[%evp 23,76,12,17,2,8,6,18,5,4,0,14,0,23,-49,0,0,0,0,0,0,0,0,0,-27,0,0,0,0,0,0,0,0,0,0,0,0,0,0,0,0,0,0,0,0,0,0,0,0,0,0,0,0,0,0,0]} 1. e4 {[%emt 0:00:02]} c5 {[%emt 0:00:26]} 2. Nf3 {[%emt 0:00:08][%cal Bg1f3,Bf3d4,Bd4b5,Bb5a3,Ba3c2][%mdl 32]} Nc6 {[%emt 0:00:31]} 3. d4 {[%emt 0:00:36]} cxd4 {[%emt 0:00:05]} 4. Nxd4 {[%emt 0:00:09]} Nf6 {[%emt 0:00:11]} 5. Nc3 {[%emt 0:00:17]} e5 {[%emt 0:00:06]} 6. Ndb5 {[%emt 0:00:46]} d6 {[%emt 0:00:04]} 7. Bg5 {[%emt 0:01:15]} a6 {[%emt 0:00:07]} 8. Na3 {[%emt 0:00:55]} b5 {[%emt 0:00:11][%cal Bb7b5,Bb5b4][%mdl 32]} 9. Nd5 {[%emt 0:00:18]} Be7 {[%emt 0:00:04]} 10. Bxf6 {[%emt 0:00:24]} Bxf6 {[%emt 0:00:02]} 11. c4 {[%emt 0:00:40]} b4 {[%emt 0:00:10]} 12. Nc2 {[%emt 0:00:14]} a5 {[%emt 0:00:15]} 13. g3 {[%emt 0:01:19] B33: Sicilian: Pelikan and Sveshnikov Variations.} O-O {[%emt 0:00:28]} 14. Bg2 {[%emt 0:11:24]} g6 $1 {[%emt 0:02:09][%mdl 4] is currently scoring better than 14...Bg5.} 15. O-O {[%emt 0:14:53]} Bg7 {[%emt 0:01:31]} 16. Qd2 {[%emt 0:09:19]} Be6 {[%emt 0:11:30]} 17. Rad1 {[%emt 0:02:59]} Nd4 {[%emt 0:05:52]} 18. Nde3 {[%emt 0:10:35] [#]} (18. Nxd4 $11 exd4 19. Rfe1) 18... Qb6 $146 {[%emt 0:28:18]} (18... b3 $1 $15 19. axb3 Nxb3 20. Qxd6 Qxd6 21. Rxd6 Rfb8) ({Predecessor:} 18... b3 19. axb3 Nxb3 20. Qxd6 Qxd6 21. Rxd6 Rfb8 22. Rb1 a4 23. Rd3 Ra7 24. Na3 Nd4 {0-1 (48) Rogic,D (2492)-Nguyen,T (2577) Tornelo INT 2021}) 19. b3 $1 $11 {[%emt 0:03:44]} a4 {[%emt 0:02:33]} 20. Nxd4 {[%emt 0:02:39]} exd4 {[%emt 0:00:11]} 21. Nc2 {[%emt 0:00:39]} axb3 {[%emt 0:15:11]} 22. axb3 {[%emt 0:00:28]} Ra2 {[%emt 0:00:06]} 23. Qxb4 {[%emt 0:15:14]} Rb8 {[%emt 0:01:36]} (23... Qc5 $5 {[%cal Ra2c2]} 24. Qd2 Rb8 $11) 24. Qxb6 {[%emt 0:03:23] The position is equal.} Rxb6 {[%emt 0:00:02]} 25. Nxd4 {[%emt 0:00:11]} Bxd4 {[%emt 0:00:05][%mdl 64] [#] Remove Defender} 26. Rxd4 {[%emt 0:00:08]} Rxb3 {[%emt 0:00:03]} 27. Rxd6 {[%emt 0:10:34]} Bxc4 {[%emt 0:00:10]} 28. Rc1 {[%emt 0:03:29]} Be6 {[%emt 0:00:23]} 29. Rdd1 {[%emt 0:04:36]} Rbb2 {[%emt 0:00:50]} 30. Rf1 {[%emt 0:00:31]} Bg4 {[%emt 0:00:50]} 31. Rb1 {[%emt 0:00:27]} Rd2 {[%emt 0:00:13]} 32. Bh1 {[%emt 0:01:51]} Kg7 {[%emt 0:04:46]} 33. h4 {[%emt 0:00:54]} Be2 {[%emt 0:01:46]} 34. Rfe1 {[%emt 0:00:14]} Bg4 {[%emt 0:02:59]} 35. Rf1 {[%emt 0:00:55]} Be2 {[%emt 0:00:22]} 36. Rfe1 {[%emt 0:00:05]} Bg4 {[%emt 0:04:18]} 37. Rf1 {[%emt 0:00:19]} Be2 {[%emt 0:00:14]} 38. Rfe1 {[%emt 0:00:04]} Bg4 {[%emt 0:00:08] A balanced but interesting game.  Weighted Error Value: White=0.07 (flawless) /Black=0.05 (flawless)} 1/2-1/2

[Event "87th Spanish Championship 2022"]
[Site "Linares"]
[Date "2022.08.15"]
[Round "6.19"]
[White "Valmana Canto, Jaime"]
[Black "Carbonell Sancho, Marc"]
[Result "0-1"]
[ECO "D80"]
[WhiteElo "2406"]
[BlackElo "2284"]
[Annotator "TA"]
[PlyCount "52"]
[EventDate "2022.08.11"]
[EventType "swiss"]
[EventCountry "ESP"]
[SourceTitle "playchess.com"]
[Source "ChessBase"]
[SourceQuality "1"]
[TimeControl "5400+30"]

{[%evp 9,52,-14,-13,-19,-16,-24,0,-21,-17,0,8,12,26,8,42,14,21,27,29,0,17,0,0,0,0,0,0,0,0,0,0,0,416,0,0,-294,-225,-229,-213,-598,-599,-1898,-1820,-2742,-2132]} 1. d4 {[%emt 0:04:02]} Nf6 {[%emt 0:05:24]} 2. c4 {[%emt 0:00:08]} g6 {[%emt 0:00:06]} 3. Nc3 {[%emt 0:00:11]} d5 {[%emt 0:00:05]} 4. h4 {[%emt 0:00:22]} c5 {[%emt 0:12:23]} 5. cxd5 {[%emt 0:00:17]} Nxd5 {[%emt 0:00:04]} 6. Na4 {[%emt 0:00:08] [#] D80: Grünfeld: Unusual White 4th moves and 4 Bg5.} Bg7 $146 {[%emt 0:07:07]} ({Predecessor:} 6... cxd4 7. Qxd4 Nf6 8. Qxd8+ Kxd8 9. Nf3 Nc6 10. g3 Nb4 11. Nd4 e5 12. Bg5 Be7 {0-1 (57) Van Foreest,J (2702)-Ragger,M (2643) Chartres 2022}) 7. e4 {[%emt 0:15:13]} Nb6 {[%emt 0:02:14]} (7... cxd4 8. exd5 Qxd5 9. Qb3 $14) 8. d5 {[%emt 0:03:59] The position is equal.} Nxa4 {[%emt 0:02:49]} 9. Qxa4+ {[%emt 0:00:08]} Nd7 {[%emt 0:00:04]} 10. h5 {[%emt 0:00:51]} O-O {[%emt 0:00:16]} 11. hxg6 {[%emt 0:02:00]} hxg6 {[%emt 0:08:01]} 12. Nf3 {[%emt 0:05:54][%cal Oe4e5]} Nb6 {[%emt 0:01:44]} 13. Qa3 {[%emt 0:04:12]} e6 {[%emt 0:04:32]} 14. d6 {[%emt 0:29:27]} Qxd6 {[%emt 0:11:53]} 15. Bh6 {[%emt 0:00:09]} Bxh6 {[%emt 0:09:57]} 16. Rxh6 {[%emt 0:00:08]} Kg7 {[%emt 0:00:03]} 17. Rh4 {[%emt 0:24:26]} Bd7 {[%emt 0:02:08]} 18. Ng5 {[%emt 0:00:41] Threatens to win with Rh7+.} Rh8 {[%emt 0:02:50] Inhibits Rh7+.} 19. Qh3 {[%emt 0:00:03] Rxh8 is the strong threat.} Rxh4 {[%emt 0:00:44]} (19... Qd4 $6 20. Rd1 Rxh4 21. Qxh4 Qb4+ 22. Rd2 $17) 20. Qxh4 {[%emt 0:00:02]} Kf8 $2 {[%emt 0:09:04][%mdl 8192] [#]} (20... Qd4 $11 {and Black has nothing to worry.} 21. Rd1 Qb4+ 22. Rd2 Rh8) 21. f4 $2 {[%emt 0:03:26]} (21. Qh7 Qf4 22. Qh6+ Ke7 $17) (21. Rd1 $1 $18 {[%cal Rd1d6]} Qe5 22. f4 (22. Nh7+ Kg7 $17) 22... Qxb2 23. e5 (23. Nh7+ $2 Kg7 $19)) 21... Qd4 $36 {[%emt 0:00:24][%mdl 2048] White must now prevent ...Qb4+. White is under pressure.} 22. e5 $2 {[%emt 0:04:50][%mdl 8192]} (22. Rd1 $11 Qe3+ 23. Be2) 22... Qe3+ {[%emt 0:01:15]} (22... Qxb2 $2 23. Qh8+ Ke7 24. Qf6+ Ke8 25. Qxf7+ Kd8 26. Rd1 Qb4+ 27. Kf2 $18) ({Inferior is} 22... Qb4+ 23. Kf2 Qxb2+ 24. Be2 Qxa1 25. Qh8+ Ke7 26. Qf6+ Ke8 27. Qxf7+ (27. Qh8+ Ke7 $11) 27... Kd8 28. Nxe6+ Bxe6 29. Qf8+ Kd7 30. Qd6+ (30. Bb5+ Kc7 $11) 30... Ke8 31. Qxe6+ Kf8 32. Qf6+ Kg8 33. Qxg6+ Kh8 34. Qf6+ Kg8 35. Qg6+ Kh8 36. Qf6+ Kg8 37. Qg6+ $11) 23. Be2 {[%emt 0:00:02] [#] And now Qh8+ would win.} Nd5 $1 {[%emt 0:02:03]} 24. Nh7+ $2 {[%emt 0:01:17]} (24. Qf2) 24... Kg7 $19 {[%emt 0:00:23] Black is clearly winning.} 25. Nf6 {[%emt 0:00:24]} Rh8 {[%emt 0:00:30] Against Qh7+} 26. Nxd5 {[%emt 0:00:37]} Qg1+ {[%emt 0:00:05][%mdl 64] Skewer, Double Attack.  Weighted Error Value: White=1.06/Black=0.26 (precise)} (26... Rxh4 $2 27. Nxe3 Rxf4 28. Bf3 $18) 0-1

[Event "87th Spanish Championship 2022"]
[Site "Linares"]
[Date "2022.08.15"]
[Round "6.20"]
[White "Ingunza Curro, Andres"]
[Black "Saenz Narciso, Miguel Angel"]
[Result "1-0"]
[ECO "B01"]
[WhiteElo "2370"]
[BlackElo "2222"]
[Annotator "TA"]
[PlyCount "73"]
[EventDate "2022.08.11"]
[EventType "swiss"]
[EventCountry "ESP"]
[SourceTitle "playchess.com"]
[Source "ChessBase"]
[SourceQuality "1"]
[TimeControl "5400+30"]

{[%evp 9,73,46,47,36,37,36,70,62,68,69,99,39,47,24,36,28,38,35,30,25,37,22,58,45,31,34,61,61,67,64,75,51,59,0,82,97,125,54,187,87,170,166,385,108,231,224,236,164,224,227,553,407,693,675,1387,1361,1098,1046,920,988,29988,450,29992,592,802,597]} 1. e4 d5 2. exd5 Qxd5 3. Nc3 Qd6 4. d4 c6 5. Nf3 Bg4 6. Be3 {B01: Scandinavian Defence.} Nf6 7. h3 Bxf3 8. Qxf3 {White is slightly better.} Nd5 9. Bd2 Nxc3 10. Bxc3 (10. bxc3 $16 Nd7 11. Rb1) 10... Nd7 11. Bd3 e6 {[#]} 12. O-O $146 ({Predecessor:} 12. O-O-O Qd5 13. Qxd5 exd5 14. Rhe1+ Kd8 15. Re2 Kc7 16. Rde1 Bd6 17. a3 {½-½ (51) Sahil,T (2172)-Drazic,S (2373) Novi Sad 2019}) 12... Nf6 13. b3 Be7 14. Bb2 O-O 15. Rad1 b5 16. c4 bxc4 17. bxc4 Rab8 18. Ba1 (18. Bc1 $5 {[%cal Rc1f4]}) 18... Rfd8 19. Rfe1 {[%cal Od4d5]} Qd7 {Prevents d5.} 20. Qg3 Nh5 21. Qf3 Nf6 22. g4 Rb4 23. Re2 {White is more active.} ({Better is} 23. Bc3 $16) 23... Qb7 ({Black should try} 23... Qc7 $14) 24. Rde1 (24. Bc3 $18 {is more deadly.}) 24... Ne8 (24... h6 $16) 25. Bc3 $18 Ra4 $2 (25... g6 {is a better defense.} 26. Bxb4 Bxb4) 26. Rb1 $2 $40 {[%mdl 128] White has strong attack.} (26. d5 $1 $18 {[%cal Od3h7] and the rest is easy. Black must now prevent Bxh7+!} g6 27. dxe6) 26... Qc7 (26... Qd7 $16) 27. Reb2 $1 Bg5 28. Kg2 {[%cal Oh3h4] h4! is the strong threat.} (28. Rb7 Qf4 29. Qe2 Nd6 $14) 28... c5 (28... h5 {was called for.}) 29. dxc5 Qxc5 $2 (29... Kf8 {is a better chance.} 30. Be2 (30. Bxh7 Qf4 $18) 30... Kg8) 30. Rb8 Qd6 {[#]} (30... Kf8 $142 31. R8b5 (31. Bxh7 Rxb8 32. Bg6 Nd6 $18) 31... Qd6) 31. R1b7 $1 Bf6 (31... Nc7 32. Qe4) 32. Rxd8 Qxd8 {[#]} 33. g5 $1 Nd6 34. gxf6 ({Worse is} 34. Bxf6 gxf6 35. Bxh7+ Kf8 $11) 34... Nxb7 35. Qxb7 (35. Bxh7+ $142 Kf8 36. fxg7+ Ke7 37. Bf6+ Kd7 38. Bxd8 Nxd8 39. g8=Q Rxc4 40. Qd3+ Rd4 41. Qxd4+ Kc7 42. Qgxd8+ Kb7 43. Q8d7+ Kb8 44. Q4xa7#) 35... Ra3 {[#]} (35... gxf6 $18 36. Qe4 Kf8 37. Qxh7 e5) 36. Qb4 (36. Bxh7+ $142 $1 {[%mdl 512]} Kxh7 {[#]} 37. Qxf7 $1 Kh6 38. Qxg7+ Kh5 39. Qh7+ Kg5 40. f4+ Kxf4 41. Qh4+ Ke3 42. Qg3+ Ke4 43. Qf3#) 36... Rxa2 {[#]} 37. Bxh7+ $1 {[%mdl 512] Weighted Error Value: White=0.63/Black=0.85} 1-0

[Event "87th Spanish Championship 2022"]
[Site "Linares"]
[Date "2022.08.15"]
[Round "6.21"]
[White "Vega Gutierrez, Sabrina"]
[Black "Gonzalez Guedes, Iyan"]
[Result "1-0"]
[ECO "E73"]
[WhiteElo "2366"]
[BlackElo "2250"]
[Annotator "TA"]
[PlyCount "97"]
[EventDate "2022.08.11"]
[EventType "swiss"]
[EventCountry "ESP"]
[SourceTitle "playchess.com"]
[Source "ChessBase"]
[SourceQuality "1"]
[TimeControl "5400+30"]

{[%evp 13,97,45,46,49,63,65,76,38,77,70,97,107,155,84,104,15,36,42,69,-83,-48,-70,-68,-94,-93,-99,-105,-87,24,0,0,0,0,0,0,0,72,54,88,78,139,134,129,134,149,88,216,200,285,150,378,178,210,157,174,166,163,159,175,172,255,248,203,165,222,188,238,227,252,0,0,0,0,0,510,0,0,0,0,0,0,0,0,0,29995,29996]} 1. d4 {[%emt 0:00:04]} Nf6 {[%emt 0:00:33]} 2. c4 {[%emt 0:00:09]} g6 {[%emt 0:00:05]} 3. Nc3 {[%emt 0:00:06]} Bg7 {[%emt 0:00:04]} 4. e4 {[%emt 0:00:08]} d6 {[%emt 0:00:03]} 5. Be2 {[%emt 0:00:16]} O-O {[%emt 0:00:07]} 6. Be3 {[%emt 0:00:08]} e5 {[%emt 0:00:58]} 7. d5 {[%emt 0:00:17]} Na6 {[%emt 0:00:02][%cal Bb8a6,Ba6c5,Bc5d7,Bd7f6][%mdl 32]} 8. g4 {[%emt 0:03:43] E73: King's Indian: Averbakh Variation without 6...c5.} Nc5 {[%emt 0:00:36]} 9. f3 {[%emt 0:01:02]} h5 {[%emt 0:00:15] Nowadays more popular than 9...a5.} 10. h3 {[%emt 0:01:55] White is better.} Nh7 {[%emt 0:10:44] [#]} 11. h4 $146 {[%emt 0:07:40]} ({Predecessor:} 11. Qd2 hxg4 12. hxg4 Bf6 13. O-O-O Bg5 14. Nh3 Bxe3 15. Qxe3 Bd7 16. Rh2 f6 17. Rdh1 {1-0 (46) Elissalt Cardenas,H (2297)-Ronka,E (2324) Chess.com INT 2021}) 11... Bf6 {[%emt 0:07:55]} 12. Bf2 {[%emt 0:09:24]} Be7 {[%emt 0:09:37]} (12... hxg4 $142 13. fxg4 b6) 13. b4 {[%emt 0:10:32]} (13. gxh5 $142 $1 Nf6 14. hxg6) 13... Nd7 {[%emt 0:04:41]} 14. Qd2 {[%emt 0:02:41]} (14. gxh5 $16 gxh5 15. Qd2) 14... a5 {[%emt 0:12:27]} 15. b5 {[%emt 0:00:10]} Ndf6 {[%emt 0:08:54][%cal Rh5g4]} 16. Be3 $2 {[%emt 0:17:23]} (16. g5 $14 {keeps the upper hand.} Nd7 17. O-O-O) 16... hxg4 $17 {[%emt 0:05:40]} 17. O-O-O {[%emt 0:01:00]} g3 {[%emt 0:06:53]} 18. f4 {[%emt 0:05:52]} Ng4 $1 {[%emt 0:01:21] aiming for ...g2.} 19. Bxg4 {[%emt 0:05:08]} Bxg4 {[%emt 0:00:09]} 20. Nge2 {[%emt 0:00:16]} f5 {[%emt 0:05:23]} ({Black should try} 20... Qd7 $17 21. f5 gxf5 22. exf5 g2) 21. exf5 {[%emt 0:03:31]} gxf5 {[%emt 0:00:46]} 22. Rdg1 {[%emt 0:00:03]} Kh8 {[%emt 0:03:30]} 23. Nxg3 {[%emt 0:00:33]} Rc8 {[%emt 0:01:39]} 24. Kb1 {[%emt 0:04:40]} Bf6 {[%emt 0:02:47] [#]} (24... Nf6 $11) 25. Nge4 $1 $16 {[%emt 0:01:18][%cal Of4e5]} exf4 {[%emt 0:05:24]} (25... Qe7 26. Nxf6) 26. Bxf4 {[%emt 0:00:03]} fxe4 {[%emt 0:00:08]} (26... Bg7 $142) 27. Rxg4 {[%emt 0:00:12]} Qd7 {[%emt 0:00:41]} 28. Rhg1 {[%emt 0:01:18] White is more active.} Qf5 {[%emt 0:01:10] ...e3+ is the strong threat.} 29. Be3 {[%emt 0:00:03]} (29. Qe3 $142 $1) 29... Qe5 {[%emt 0:01:05]} (29... Rg8 $16 30. Rxg8+ (30. Rxe4 Bxc3 31. Qxc3+ Nf6 $11) 30... Rxg8 31. Rxg8+ Kxg8) 30. Kc2 $18 {[%emt 0:00:38]} Rce8 {[%emt 0:03:03]} (30... Rg8 $142 31. Rxe4 Qh5) 31. Rf1 {[%emt 0:03:09]} (31. Nxe4 $18 Bg7 32. b6 (32. Rxg7 Qxe4+ 33. Qd3 Qxd3+ 34. Kxd3 Rf3 $15)) 31... Bg7 {[%emt 0:02:02] [#]} (31... Rg8 $16 32. Rxg8+ Kxg8) 32. Rxf8+ {[%emt 0:00:13]} (32. Rxg7 $142 $1 {[%mdl 512]} Qxg7 33. Rg1 (33. Bh6 Qxh6 34. Qxh6 Rxf1 $14)) 32... Nxf8 {[%emt 0:01:08]} 33. Rxe4 {[%emt 0:04:51]} Qf5 {[%emt 0:00:43]} 34. Qd3 {[%emt 0:00:52]} Rxe4 {[%emt 0:00:14]} 35. Qxe4 {[%emt 0:02:33]} Qf6 {[%emt 0:00:04]} 36. Bd2 {[%emt 0:00:27]} Ng6 {[%emt 0:02:56]} (36... Qf1 $142 37. Nd1 b6) 37. h5 {[%emt 0:00:04]} Ne5 {[%emt 0:00:04]} 38. Ne2 {[%emt 0:02:56]} b6 {[%emt 0:01:24]} (38... a4 $142 39. Nf4 Nf7) 39. Nf4 {[%emt 0:08:12]} Kg8 {[%emt 0:01:14]} (39... Nf3 $2 40. Qxf3 Qb2+ 41. Kd1 $18) (39... Qf7 {was worth a try.} 40. Ng6+ Kg8) 40. Ne6 $1 {[%emt 0:01:13]} Qf1 {[%emt 0:01:54]} 41. Nxc7 $2 {[%emt 0:05:24]} ({Better is} 41. Nxg7 $18 Kxg7 42. h6+ (42. Bc3 Qf2+ 43. Kb3 Qf1 $16) 42... Kg8 43. Bc3 Qf2+ 44. Kb3) 41... Nxc4 $11 {[%emt 0:01:07]} 42. Qe8+ {[%emt 0:00:31]} Kh7 $1 {[%emt 0:01:24] ( -> ...Na3+)} 43. Qg6+ Kg8 $4 {[%mdl 8192] [#]} (43... Kh8 $11) 44. h6 $2 $40 {[%emt 0:01:19][%mdl 128] Black needs to defend precisely.} (44. Ne6 $1 $18 {[%csl Ge6][%cal Rg6g7]} Na3+ 45. Kb3 Qf3+ 46. Ka4 Qd1+ 47. Kxa3 Qf3+ {[#]} 48. Be3 $1 {[%mdl 512]} (48. Ka4 Qd1+ 49. Ka3 Qf3+ 50. Be3 Qxe3+ 51. Ka4 Qh6 $18) 48... Qxe3+ 49. Ka4) 44... Na3+ {[%emt 0:00:57][%mdl 64] Discovered Attack, Double Attack} 45. Kb3 {[%emt 0:00:01][%csl Gh6][%cal Rg6g7]} Qc4+ {[%emt 0:00:36]} 46. Kxa3 {[%emt 0:00:06][%csl Gh6][%cal Rg6g7] Chess con chili.} Qc5+ $1 {[%emt 0:00:28]} 47. Kb3 {[%emt 0:00:07][%csl Gh6][%cal Rg6g7]} a4+ $1 {[%emt 0:00:31]} 48. Kxa4 {[%emt 0:00:03][%csl Gh6][%cal Rg6g7]} Qc2+ $2 {[%emt 0:00:22][%mdl 8192]} 49. Qxc2 {[%emt 0:00:05] Weighted Error Value: White=0.45/Black=0.55} 1-0